bitfinex-derivatives/quotes_BTCF0:USTF0_20251009
["timestamp","ask_amount","ask_price","bid_price","bid_amount"]
[1760035799495,0.4409217,120710.0,120700.0,4.33549534]
[1760035800493,0.4409217,120710.0,120700.0,4.33553534]
[1760035801390,0.4409217,120710.0,120700.0,1.51609534]
[1760035801694,0.75486354,120710.0,120700.0,3.35504582]
[1760035801891,0.75486354,120710.0,120700.0,0.53564582]
[1760035802095,0.75486354,120710.0,120700.0,1.28680582]
[1760035802892,0.75486354,120710.0,120700.0,1.43138081]
[1760035803097,0.75486354,120710.0,120700.0,1.69378081]
[1760035804497,0.75486354,120710.0,120700.0,0.94262081]
[1760035804697,0.75486354,120710.0,120700.0,1.69378081]
[1760035804893,0.75486354,120710.0,120700.0,1.02542941]
[1760035805103,0.5059517,120710.0,120700.0,2.02550125]
[1760035805401,0.4409217,120710.0,120700.0,2.02550125]
[1760035806092,0.4409217,120710.0,120700.0,2.12983648]
[1760035806292,0.4409217,120710.0,120700.0,1.37867648]
[1760035806494,0.4409217,120710.0,120700.0,2.12983648]
[1760035807394,0.4409217,120710.0,120700.0,2.02550125]
[1760035808199,0.35812,120710.0,120700.0,2.02550125]
[1760035808394,0.34812,120710.0,120700.0,2.77874906]
[1760035808899,0.34812,120710.0,120700.0,2.67441309]
[1760035809402,0.31812,120710.0,120700.0,2.82340724]
[1760035810499,0.31812,120710.0,120700.0,1.4233354]
[1760035810703,0.31812,120710.0,120700.0,1.61839935]
[1760035810904,0.31812,120710.0,120700.0,4.2888452]
[1760035811403,0.31812,120710.0,120700.0,4.2888052]
[1760035811603,0.31812,120710.0,120700.0,1.62032788]
[1760035811804,0.31812,120710.0,120700.0,4.24662393]
[1760035812004,0.63211184,120710.0,120700.0,2.65247165]
[1760035812204,0.3832,120710.0,120700.0,3.65254349]
[1760035812406,0.3832,120710.0,120700.0,3.50362081]
[1760035812605,0.3832,120710.0,120700.0,3.65055218]
[1760035813102,0.7832,120710.0,120700.0,1.58131218]
[1760035813299,0.7832,120710.0,120700.0,1.43138081]
[1760035813504,0.7832,120710.0,120700.0,1.18246897]
[1760035814102,0.7832,120710.0,120700.0,0.43130897]
[1760035814306,0.7832,120710.0,120700.0,1.18242897]
[1760035817501,1.11534028,120710.0,120700.0,0.0049708]
[1760035817807,1.12671483,120710.0,120700.0,0.86040027]
[1760035818006,1.20951653,120710.0,120700.0,0.86040027]
[1760035818701,1.20951653,120710.0,120700.0,0.10924027]
[1760035818907,1.20951653,120710.0,120700.0,0.86040027]
[1760035820708,1.57031653,120710.0,120700.0,0.7561308]
[1760035821797,0.03919,120690.0,120680.0,0.43218846]
[1760035822002,0.40427,120690.0,120680.0,1.18334846]
[1760035822198,0.40427,120690.0,120680.0,0.58111983]
[1760035822505,0.40427,120690.0,120680.0,1.33227983]
[1760035822809,0.40427,120690.0,120680.0,1.33231983]
[1760035823007,0.40427,120690.0,120680.0,1.18538846]
[1760035823906,0.40427,120690.0,120680.0,0.43418846]
[1760035824213,0.40427,120690.0,120680.0,1.18538846]
[1760035824509,0.40427,120690.0,120680.0,1.18738846]
[1760035824806,0.40427,120690.0,120680.0,1.29151911]
[1760035826010,0.40427,120690.0,120680.0,0.54031911]
[1760035826216,0.73641028,120690.0,120680.0,0.68925048]
[1760035826416,0.40427,120690.0,120680.0,1.33631983]
[1760035827111,0.40427,120690.0,120680.0,1.18738846]
[1760035827921,0.40427,120690.0,120680.0,1.22504945]
[1760035828618,0.40427,120690.0,120680.0,0.47384945]
[1760035828922,1.49721028,120690.0,120680.0,0.76021162]
[1760035829617,1.49721028,120690.0,120680.0,6e-08]
[1760035829919,0.10386,120680.0,120670.0,0.14899453]
[1760035830124,1.09680028,120680.0,120670.0,0.87291453]
[1760035830327,1.49680028,120680.0,120670.0,0.72398316]
[1760035830622,1.13600028,120680.0,120670.0,0.81308316]
[1760035830923,0.40386,120680.0,120670.0,0.06184316]
[1760035831224,0.40386,120680.0,120670.0,1.21559316]
[1760035831426,0.40386,120680.0,120670.0,1.21859316]
[1760035831725,0.36607,120680.0,120670.0,1.63356254]
[1760035832218,0.36607,120680.0,120670.0,0.88232254]
[1760035832715,0.36607,120680.0,120670.0,1.63360254]
[1760035833223,0.36607,120680.0,120670.0,0.88232254]
[1760035833528,0.40386,120680.0,120670.0,1.21867316]
[1760035833723,0.40386,120680.0,120670.0,1.17996316]
[1760035834325,0.36607,120680.0,120670.0,1.30150226]
[1760035834522,0.36607,120680.0,120670.0,0.55018226]
[1760035834723,0.36607,120680.0,120670.0,1.30150226]
[1760035835228,0.36607,120680.0,120670.0,1.36906424]
[1760035836227,0.36607,120680.0,120670.0,0.61774424]
[1760035836428,0.36607,120680.0,120670.0,1.36910424]
[1760035837432,0.3,120680.0,120670.0,0.61774424]
[1760035837619,0.40386,120680.0,120670.0,1.28623514]
[1760035837823,0.40386,120680.0,120670.0,1.24752514]
[1760035838024,0.40386,120680.0,120670.0,0.88680514]
[1760035838326,0.40386,120680.0,120670.0,1.24760514]
[1760035839129,0.73600028,120680.0,120670.0,0.49620514]
[1760035839326,1.49680028,120680.0,120670.0,0.00606316]
[1760035839524,0.40386,120680.0,120670.0,0.06784316]
[1760035839825,0.40386,120680.0,120670.0,1.18004316]
[1760035843931,0.40386,120680.0,120670.0,0.42864316]
[1760035844132,0.40386,120680.0,120670.0,1.18004316]
[1760035844330,0.73600028,120680.0,120670.0,1.18004316]
[1760035844527,0.73600028,120680.0,120670.0,0.42864316]
[1760035844833,0.36607,120680.0,120670.0,0.55072226]
[1760035845035,0.3,120680.0,120670.0,2.03422254]
[1760035845623,0.3,120680.0,120670.0,2.18315391]
[1760035845832,0.3,120680.0,120670.0,2.18323391]
[1760035846332,0.3,120680.0,120670.0,2.03430254]
[1760035848432,0.36409,120680.0,120670.0,1.70216226]
[1760035848634,0.3,120680.0,120670.0,2.03430254]
[1760035850033,0.3,120680.0,120670.0,1.28286254]
[1760035850233,0.3,120680.0,120670.0,2.03426254]
[1760035850437,0.3,120680.0,120670.0,1.28286254]
[1760035850635,0.3,120680.0,120670.0,2.03422254]
[1760035851232,0.3,120680.0,120670.0,1.28286254]
[1760035851529,0.36409,120680.0,120670.0,0.95072226]
[1760035851734,0.36409,120680.0,120670.0,2.03422254]
[1760035852733,0.3,120680.0,120670.0,2.03422254]
[1760035855026,0.3,120680.0,120670.0,1.70208226]
[1760035855227,0.3,120680.0,120670.0,1.28286254]
[1760035855635,0.3,120680.0,120670.0,4.10310254]
[1760035859038,0.3,120680.0,120670.0,3.35174254]
[1760035859239,0.3,120680.0,120670.0,4.10310254]
[1760035859936,0.3,120680.0,120670.0,3.70310254]
[1760035861934,0.3,120680.0,120670.0,0.88286254]
[1760035862140,0.3,120680.0,120670.0,3.70302254]
[1760035863239,0.3,120680.0,120670.0,0.88286254]
[1760035863435,0.3,120680.0,120670.0,3.70302254]
[1760035865040,0.3,120680.0,120670.0,0.88286254]
[1760035865240,0.36158,120680.0,120670.0,2.95166254]
[1760035865431,0.36158,120680.0,120670.0,0.88286254]
[1760035865634,0.36158,120680.0,120670.0,3.28801316]
[1760035865831,0.39922,120680.0,120670.0,3.28801316]
[1760035866040,0.39922,120680.0,120670.0,3.37084226]
[1760035866235,0.36158,120680.0,120670.0,3.37084226]
[1760035868040,0.36158,120680.0,120670.0,1.21921316]
[1760035868939,0.36158,120680.0,120670.0,1.30204226]
[1760035870836,0.36158,120680.0,120670.0,1.63418254]
[1760035871042,0.3,120680.0,120670.0,1.63418254]
[1760035871241,0.3,120680.0,120670.0,1.89658254]
[1760035871442,0.36158,120680.0,120670.0,0.81312226]
[1760035871737,0.73136028,120680.0,120670.0,0.73029316]
[1760035871941,1.13136028,120680.0,120670.0,1.01974316]
[1760035872737,1.13136028,120680.0,120670.0,0.26846316]
[1760035872939,1.13136028,120680.0,120670.0,1.44725316]
[1760035873140,0.79922,120680.0,120670.0,1.48536316]
[1760035874834,1.82430056,120680.0,120660.0,0.15390381]
[1760035875040,1.19216028,120670.0,120660.0,0.00497244]
[1760035875239,1.51216028,120670.0,120660.0,2.44e-06]
[1760035875538,1.51216028,120670.0,120640.0,0.00497327]
[1760035875539,0.09922,120650.0,120640.0,0.00497327]
[1760035875741,1.69772246,120650.0,120640.0,0.41761327]
[1760035875945,0.09922,120630.0,120620.0,0.00497409]
[1760035876143,0.61871566,120630.0,120620.0,0.82440409]
[1760035877235,0.6296429,120630.0,120620.0,0.82440409]
[1760035877637,0.87913856,120630.0,120620.0,0.00497409]
[1760035877843,1.63993856,120630.0,120620.0,0.00497409]
[1760035878048,1.63993856,120630.0,120620.0,0.75785409]
[1760035878546,1.63993856,120630.0,120620.0,0.00497409]
[1760035878747,1.63993856,120630.0,120620.0,0.75785409]
[1760035878948,1.63993856,120630.0,120620.0,0.00497409]
[1760035879141,1.14094724,120630.0,120620.0,0.75785409]
[1760035879339,1.63993856,120630.0,120620.0,0.75785409]
[1760035879943,0.68993856,120630.0,120620.0,0.75785409]
[1760035880144,0.98151856,120630.0,120620.0,0.75785409]
[1760035880649,0.84057132,120630.0,120620.0,0.82456409]
[1760035881744,0.84057132,120630.0,120620.0,0.75785409]
[1760035882150,0.34158,120630.0,120620.0,0.82456409]
[1760035882447,0.84057132,120630.0,120620.0,0.82456409]
[1760035882949,0.84057132,120630.0,120620.0,0.75785409]
[1760035883451,0.84057132,120630.0,120620.0,0.82456409]
[1760035883645,0.85153608,120630.0,120620.0,0.82456409]
[1760035885153,0.35254476,120630.0,120620.0,1.62327409]
[1760035885452,0.60204042,120630.0,120620.0,1.87292975]
[1760035885654,0.59107566,120630.0,120620.0,1.62343409]
[1760035886054,0.59107566,120630.0,120620.0,0.87059409]
[1760035886253,0.59107566,120630.0,120620.0,1.62347409]
[1760035886448,0.59107566,120630.0,120620.0,0.87059409]
[1760035886655,0.85056955,120630.0,120620.0,0.00497409]
[1760035886854,0.85056955,120630.0,120620.0,0.75785409]
[1760035887749,0.60107389,120630.0,120620.0,0.47059409]
[1760035887955,0.60107389,120630.0,120620.0,1.22387409]
[1760035888650,0.60107389,120630.0,120620.0,0.47059409]
[1760035888856,0.60107389,120630.0,120620.0,0.75821409]
[1760035889055,0.85056955,120630.0,120620.0,0.75821409]
[1760035889256,0.60107389,120630.0,120620.0,0.83248409]
[1760035889456,0.60107389,120630.0,120620.0,1.62399409]
[1760035889652,0.59107566,120630.0,120620.0,0.87059409]
[1760035889859,0.59107566,120630.0,120620.0,1.62399409]
[1760035890158,0.59107566,120630.0,120620.0,1.62395409]
[1760035890652,0.59107566,120630.0,120620.0,0.50979409]
[1760035890856,0.84057132,120630.0,120620.0,1.15833409]
[1760035891258,0.84057132,120630.0,120620.0,1.51913409]
[1760035891553,0.84057132,120630.0,120620.0,0.83380409]
[1760035891758,0.59107566,120630.0,120620.0,1.62818409]
[1760035892155,0.59107566,120630.0,120620.0,1.62814409]
[1760035896257,0.59107566,120630.0,120620.0,0.87474409]
[1760035896560,0.59107566,120630.0,120620.0,1.62814409]
[1760035898355,0.59107566,120630.0,120620.0,1.62802409]
[1760035900563,0.59107566,120630.0,120620.0,1.62786409]
[1760035901162,0.59107566,120630.0,120620.0,1.62782409]
[1760035902361,0.59107566,120630.0,120620.0,1.22782409]
[1760035903764,0.59107566,120630.0,120620.0,0.87474409]
[1760035903970,0.59107566,120630.0,120620.0,1.62774409]
[1760035906577,0.59107566,120630.0,120620.0,0.87474409]
[1760035906771,0.59107566,120630.0,120620.0,1.62754409]
[1760035908577,0.59107566,120630.0,120620.0,0.87474409]
[1760035908778,0.59107566,120630.0,120620.0,1.62750409]
[1760035909580,0.59107566,120630.0,120620.0,1.62742409]
[1760035910485,0.28,120630.0,120620.0,1.20710325]
[1760035910780,0.28,120630.0,120620.0,1.95970325]
[1760035910981,0.28,120630.0,120620.0,1.71020759]
[1760035911181,0.28,120630.0,120620.0,1.95970325]
[1760035911482,0.28,120630.0,120620.0,1.95990325]
[1760035911878,0.52949566,120630.0,120620.0,1.95990325]
[1760035912080,0.28,120630.0,120620.0,1.95990325]
[1760035912280,0.52949566,120630.0,120620.0,1.95990325]
[1760035912986,0.28,120630.0,120620.0,1.95990325]
[1760035914077,0.3434,120630.0,120620.0,1.95974325]
[1760035914482,0.59289566,120630.0,120620.0,1.95974325]
[1760035914681,0.59289566,120630.0,120620.0,1.20710325]
[1760035914886,0.59289566,120630.0,120620.0,1.87683975]
[1760035916279,0.59289566,120630.0,120620.0,1.12423975]
[1760035916780,0.28,120630.0,120620.0,2.20919891]
[1760035916981,0.31289566,120650.0,120640.0,0.10484]
[1760035917179,0.31289566,120650.0,120640.0,0.46564]
[1760035917378,0.60289566,120650.0,120640.0,1.61832]
[1760035917575,0.60289566,120650.0,120640.0,0.86564]
[1760035917781,0.60289566,120650.0,120640.0,1.61832]
[1760035918181,0.61392309,120650.0,120640.0,1.61832]
[1760035918884,0.61392309,120650.0,120640.0,1.61828]
[1760035920981,0.61392309,120650.0,120640.0,0.86564]
[1760035921381,0.64484309,120650.0,120640.0,1.51328]
[1760035922282,0.64484309,120650.0,120640.0,0.82779]
[1760035922485,0.61392309,120650.0,120640.0,1.61944]
[1760035923684,0.61392309,120650.0,120640.0,1.6194]
[1760035924185,0.61392309,120650.0,120640.0,0.867]
[1760035924388,0.64484309,120650.0,120640.0,1.58015]
[1760035925485,0.61392309,120650.0,120640.0,1.61936]
[1760035925687,0.61392309,120650.0,120640.0,1.61928]
[1760035926484,0.36442743,120650.0,120640.0,1.61928]
[1760035926688,0.61392309,120650.0,120640.0,1.61928]
[1760035927090,0.61392309,120650.0,120640.0,0.867]
[1760035927286,0.64484309,120650.0,120640.0,0.7608]
[1760035927490,0.64484309,120650.0,120640.0,1.51312]
[1760035927691,0.64484309,120650.0,120640.0,0.82779]
[1760035927887,0.71158787,120650.0,120640.0,1.58007]
[1760035928286,0.71158787,120650.0,120640.0,1.58011]
[1760035928688,0.71158787,120650.0,120640.0,1.51312]
[1760035929492,0.71158787,120650.0,120640.0,1.15224]
[1760035929692,0.71158787,120650.0,120640.0,1.22672389]
[1760035929892,0.71158787,120650.0,120640.0,0.47448389]
[1760035930093,0.71158787,120650.0,120640.0,1.22672389]
[1760035930295,0.46209221,120650.0,120640.0,1.29371389]
[1760035930488,0.43117221,120650.0,120640.0,0.867]
[1760035930689,0.68066787,120650.0,120640.0,1.6192]
[1760035931290,0.68066787,120650.0,120640.0,1.7232939]
[1760035931496,0.68066787,120650.0,120640.0,0.9710939]
[1760035931695,0.68066787,120650.0,120640.0,1.7233339]
[1760035931994,0.68066787,120650.0,120640.0,1.61924]
[1760035933090,0.71158787,120650.0,120640.0,0.82779]
[1760035933290,0.40344,120670.0,120640.0,1.55221]
[1760035933486,0.13700183,120660.0,120650.0,0.6847971]
[1760035933687,0.42745432,120660.0,120650.0,1.4369171]
[1760035935392,0.53994815,120660.0,120650.0,1.4369171]
[1760035935601,0.29045249,120660.0,120650.0,1.18742144]
[1760035935894,0.29145249,120660.0,120650.0,0.43530144]
[1760035936088,0.29145249,120660.0,120650.0,1.18742144]
[1760035936596,0.29245249,120660.0,120650.0,1.18742144]
[1760035936792,0.35895381,120660.0,120650.0,1.18742144]
[1760035936998,0.35995381,120660.0,120650.0,1.18742144]
[1760035937296,0.35995381,120660.0,120650.0,1.11292]
[1760035937695,0.35995381,120660.0,120650.0,1.15213]
[1760035937992,0.35995381,120660.0,120650.0,1.22663144]
[1760035938193,0.35995381,120660.0,120650.0,1.11292]
[1760035938495,0.35995381,120660.0,120650.0,1.11276]
[1760035939094,0.35895381,120660.0,120650.0,1.18726144]
[1760035939294,0.35995381,120660.0,120650.0,1.11276]
[1760035940297,0.35995381,120660.0,120650.0,1.18726144]
[1760035941798,0.35995381,120660.0,120650.0,1.11272]
[1760035943197,0.35995381,120660.0,120640.0,0.43530144]
[1760035943198,0.69247379,120660.0,120640.0,0.43530144]
[1760035943406,0.33251998,120650.0,120640.0,0.43530144]
[1760035943598,0.61251998,120650.0,120640.0,1.58714144]
[1760035943798,0.61251998,120650.0,120640.0,1.15184]
[1760035944093,0.28,120650.0,120640.0,1.15184]
[1760035944302,0.61251998,120650.0,120640.0,1.15184]
[1760035944505,0.61251998,120650.0,120640.0,0.75184]
[1760035944701,0.97331998,120650.0,120640.0,0.75184]
[1760035945203,0.61251998,120650.0,120640.0,0.75184]
[1760035945798,0.61251998,120650.0,120640.0,0.82634144]
[1760035945999,0.28,120650.0,120640.0,0.82634144]
[1760035946204,0.61251998,120650.0,120640.0,0.75184]
[1760035946401,0.28,120650.0,120640.0,0.40001]
[1760035946594,0.28,120650.0,120640.0,1.22635144]
[1760035946795,0.28,120650.0,120640.0,1.15185]
[1760035946995,0.282,120650.0,120640.0,1.15185]
[1760035947200,0.282,120650.0,120640.0,1.22635144]
[1760035949206,0.282,120650.0,120640.0,1.18714144]
[1760035950104,0.282,120650.0,120640.0,1.11264]
[1760035950304,0.61451998,120650.0,120640.0,1.11264]
[1760035951404,0.282,120650.0,120640.0,1.11264]
[1760035951606,0.282,120650.0,120640.0,1.18714144]
[1760035952003,0.282,120650.0,120640.0,1.11264]
[1760035954803,0.282,120650.0,120640.0,1.18714144]
[1760035955107,0.282,120650.0,120640.0,1.11264]
[1760035956008,0.282,120650.0,120640.0,1.18714144]
[1760035956209,0.282,120650.0,120640.0,1.11264]
[1760035961606,0.283,120650.0,120640.0,1.11264]
[1760035961811,0.61551998,120650.0,120640.0,1.11264]
[1760035962806,0.283,120650.0,120640.0,0.80357998]
[1760035963007,0.283,120650.0,120640.0,1.95545998]
[1760035963209,0.283,120650.0,120640.0,2.45955388]
[1760035964414,0.282,120650.0,120640.0,2.35545998]
[1760035964714,0.281,120650.0,120640.0,2.35545998]
[1760035965014,0.282,120650.0,120640.0,2.35545998]
[1760035965615,0.281,120650.0,120640.0,2.35545998]
[1760035965808,0.282,120650.0,120640.0,2.45955388]
[1760035966212,0.282,120650.0,120640.0,1.70767388]
[1760035966410,0.282,120650.0,120640.0,2.45955388]
[1760035967008,0.282,120650.0,120640.0,2.35545998]
[1760035967914,0.282,120650.0,120640.0,1.60357998]
[1760035968115,0.282,120650.0,120640.0,2.02294]
[1760035968315,0.282,120650.0,120640.0,2.35545998]
[1760035970518,0.282,120650.0,120640.0,1.60357998]
[1760035970918,0.282,120650.0,120640.0,2.35541998]
[1760035974910,0.282,120650.0,120640.0,1.60357998]
[1760035975112,0.282,120650.0,120640.0,2.35541998]
[1760035975310,0.282,120650.0,120640.0,1.1608]
[1760035975514,0.61451998,120650.0,120640.0,0.7608]
[1760035975711,0.61451998,120650.0,120640.0,1.5870895]
[1760035977022,0.282,120650.0,120640.0,1.5870895]
[1760035978018,0.282,120650.0,120640.0,0.8352895]
[1760035978224,0.282,120650.0,120640.0,0.3608]
[1760035978420,0.61451998,120650.0,120640.0,0.8558939]
[1760035978924,0.61451998,120650.0,120640.0,0.82630178]
[1760035979425,0.61451998,120650.0,120640.0,0.7518]
[1760035980121,0.282,120650.0,120640.0,0.7518]
[1760035980325,0.61451998,120650.0,120640.0,0.7518]
[1760035980717,0.61451998,120650.0,120630.0,0.07450178]
[1760035980929,0.33251998,120640.0,120630.0,0.47450178]
[1760035981123,0.64251998,120640.0,120630.0,1.22630178]
[1760035981823,0.64251998,120640.0,120630.0,0.4]
[1760035982124,0.31,120640.0,120630.0,1.55143]
[1760035982325,0.31,120640.0,120630.0,1.62593178]
[1760035983724,0.31,120640.0,120630.0,1.55143]
[1760035983926,0.311,120640.0,120630.0,1.55143]
[1760035984322,0.312,120640.0,120630.0,1.55143]
[1760035984724,0.312,120640.0,120630.0,1.62593178]
[1760035984922,0.312,120640.0,120630.0,1.55143]
[1760035985329,0.312,120640.0,120630.0,1.62593178]
[1760035985626,0.312,120640.0,120630.0,1.62597178]
[1760035987128,0.312,120640.0,120630.0,1.55147]
[1760035989224,0.312,120640.0,120630.0,1.62597178]
[1760035991324,0.312,120640.0,120630.0,0.87413178]
[1760035991628,0.312,120640.0,120630.0,1.58714178]
[1760035991830,0.64451998,120640.0,120630.0,1.15184]
[1760035993024,0.64451998,120640.0,120630.0,0.4]
[1760035993224,0.64451998,120640.0,120630.0,1.15184]
[1760035993429,0.64451998,120640.0,120630.0,0.4]
[1760035993630,0.64451998,120640.0,120630.0,1.15184]
[1760035995727,0.64451998,120640.0,120630.0,0.4]
[1760035995932,0.64451998,120640.0,120630.0,1.15188]
[1760035996733,1.00531998,120640.0,120630.0,1.15188]
[1760035997534,1.1718819,120640.0,120630.0,1.15188]
[1760035998936,1.1718819,120640.0,120630.0,0.4]
[1760035999136,1.1718819,120640.0,120620.0,1.19215587]
[1760035999437,0.24954095,120630.0,120620.0,0.84027587]
[1760035999738,0.51954095,120630.0,120620.0,1.59215587]
[1760036000430,0.51954095,120630.0,120620.0,1.88052682]
[1760036000632,0.27,120630.0,120620.0,1.88052682]
[1760036000832,0.51954095,120630.0,120620.0,1.88052682]
[1760036002535,0.51954095,120630.0,120620.0,1.80602504]
[1760036002740,0.27,120630.0,120620.0,2.05556599]
[1760036002940,0.27,120630.0,120620.0,2.15965989]
[1760036003138,0.27,120630.0,120620.0,1.80777989]
[1760036003339,0.27,120630.0,120620.0,2.31011894]
[1760036003540,0.27,120630.0,120620.0,2.38458081]
[1760036003841,0.27,120630.0,120620.0,2.20602504]
[1760036004040,0.51954095,120630.0,120620.0,2.20602504]
[1760036004340,0.51954095,120630.0,120620.0,1.51765409]
[1760036004541,0.51954095,120630.0,120620.0,1.59213006]
[1760036005442,0.51954095,120630.0,120620.0,1.51765409]
[1760036005636,0.51954095,120630.0,120620.0,1.5921486]
[1760036006845,0.51954095,120630.0,120620.0,0.8402686]
[1760036007141,0.51954095,120630.0,120620.0,1.5921486]
[1760036007537,0.51954095,120630.0,120620.0,1.51765409]
[1760036007743,0.51954095,120630.0,120620.0,1.76719504]
[1760036007953,0.51954095,120630.0,120620.0,1.84172117]
[1760036008748,0.51954095,120630.0,120620.0,1.76719504]
[1760036009051,0.51954095,120630.0,120620.0,1.59220008]
[1760036009555,0.51954095,120630.0,120620.0,1.63103008]
[1760036010050,0.51954095,120630.0,120620.0,0.84032008]
[1760036010250,0.51954095,120630.0,120620.0,1.59220008]
[1760036010654,0.51954095,120630.0,120620.0,1.84174103]
[1760036010950,0.51954095,120630.0,120620.0,1.88076103]
[1760036011150,0.51954095,120630.0,120620.0,1.63122008]
[1760036011346,0.51954095,120630.0,120620.0,0.87934008]
[1760036011549,0.51954095,120630.0,120620.0,1.59216008]
[1760036012153,0.51954095,120630.0,120620.0,0.84032008]
[1760036012354,0.51954095,120630.0,120620.0,1.59216008]
[1760036013254,0.51954095,120630.0,120620.0,0.84032008]
[1760036013454,0.51954095,120630.0,120620.0,1.59216008]
[1760036016852,0.27,120630.0,120620.0,1.59216008]
[1760036017054,0.51954095,120630.0,120620.0,1.59216008]
[1760036018959,1.1298819,120630.0,120620.0,1.23136008]
[1760036019259,0.88034095,120630.0,120620.0,1.15681409]
[1760036019455,0.88034095,120630.0,120620.0,1.23136008]
[1760036019654,0.88034095,120630.0,120620.0,1.15681409]
[1760036022365,0.88034095,120630.0,120620.0,0.75681409]
[1760036024061,0.88034095,120630.0,120620.0,0.00497409]
[1760036024253,0.88034095,120630.0,120620.0,1.11813504]
[1760036024254,0.51954095,120630.0,120620.0,1.11813504]
[1760036024457,0.51954095,120630.0,120620.0,1.94448103]
[1760036024962,0.51954095,120630.0,120620.0,1.63114008]
[1760036025264,0.51954095,120630.0,120620.0,0.87934008]
[1760036025660,0.27,120630.0,120620.0,1.63114008]
[1760036026063,0.51954095,120630.0,120620.0,1.88068103]
[1760036026661,0.51954095,120630.0,120620.0,1.59212008]
[1760036026862,0.27,120630.0,120620.0,1.59212008]
[1760036027061,0.51954095,120630.0,120620.0,1.59212008]
[1760036027264,0.51954095,120630.0,120620.0,1.51757409]
[1760036027664,0.51954095,120630.0,120620.0,1.55620409]
[1760036028171,0.27,120630.0,120620.0,1.55620409]
[1760036028469,0.51954095,120630.0,120620.0,1.55620409]
[1760036028669,0.51954095,120630.0,120620.0,0.80440409]
[1760036029169,0.51954095,120630.0,120620.0,1.55620409]
[1760036030268,0.51954095,120630.0,120620.0,1.19540409]
[1760036030572,0.51954095,120630.0,120620.0,1.55620409]
[1760036031870,0.51954095,120630.0,120620.0,1.19540409]
[1760036032171,0.51954095,120630.0,120620.0,0.44360409]
[1760036032371,0.51954095,120630.0,120620.0,1.19536409]
[1760036033167,0.51954095,120630.0,120620.0,1.55616409]
[1760036033370,0.51954095,120630.0,120620.0,1.19536409]
[1760036034273,0.51954095,120630.0,120620.0,0.44360409]
[1760036034571,0.51954095,120630.0,120620.0,1.19536409]
[1760036034772,0.51954095,120630.0,120620.0,1.55616409]
[1760036036474,0.27,120630.0,120620.0,1.55616409]
[1760036036674,0.51954095,120630.0,120620.0,1.80570504]
[1760036037168,0.51954095,120630.0,120620.0,1.88025103]
[1760036037569,0.51954095,120630.0,120620.0,1.12849103]
[1760036037975,0.51954095,120630.0,120620.0,1.88025103]
[1760036038274,0.51954095,120630.0,120620.0,1.80570504]
[1760036042170,0.51954095,120630.0,120620.0,1.88025103]
[1760036042474,0.51954095,120630.0,120620.0,1.80570504]
[1760036042775,0.51954095,120630.0,120620.0,1.55616409]
[1760036043074,0.51954095,120630.0,120620.0,1.88025103]
[1760036043270,0.51954095,120630.0,120620.0,1.59208008]
[1760036043576,0.27,120630.0,120620.0,1.63269008]
[1760036043771,0.51954095,120630.0,120620.0,1.63269008]
[1760036047771,0.51954095,120630.0,120620.0,1.27189008]
[1760036048179,0.27,120630.0,120620.0,1.63269008]
[1760036048381,0.51954095,120630.0,120620.0,1.88223103]
[1760036049682,0.51954095,120630.0,120620.0,1.80768504]
[1760036051978,0.51954095,120630.0,120620.0,1.55814409]
[1760036052174,0.27,120630.0,120620.0,1.55806409]
[1760036052379,0.51954095,120630.0,120620.0,1.55806409]
[1760036053477,0.51954095,120630.0,120620.0,0.80642409]
[1760036053683,0.51954095,120630.0,120620.0,1.51741409]
[1760036053983,0.51954095,120630.0,120620.0,1.15661409]
[1760036055375,0.51954095,120630.0,120620.0,0.40497409]
[1760036055580,0.7700819,120630.0,120620.0,1.15661409]
[1760036055781,0.52054095,120630.0,120620.0,1.15661409]
[1760036056681,0.271,120630.0,120620.0,0.80642409]
[1760036056877,0.52054095,120630.0,120620.0,1.55802409]
[1760036059284,0.52054095,120630.0,120620.0,0.80642409]
[1760036059485,0.60372323,120630.0,120620.0,1.55802409]
[1760036060684,0.60572323,120630.0,120620.0,1.55802409]
[1760036061479,0.60572323,120630.0,120620.0,1.19722409]
[1760036061787,0.60572323,120630.0,120620.0,0.44562409]
[1760036061988,0.60572323,120630.0,120620.0,1.19718409]
[1760036062388,0.60572323,120630.0,120620.0,0.44562409]
[1760036062688,0.60572323,120630.0,120620.0,1.19718409]
[1760036064087,0.60572323,120630.0,120620.0,0.44562409]
[1760036064286,0.60572323,120630.0,120620.0,1.19718409]
[1760036067088,0.273,120630.0,120620.0,1.19718409]
[1760036067586,0.60572323,120630.0,120620.0,1.19718409]
[1760036069486,0.273,120630.0,120620.0,1.19718409]
[1760036069688,0.60572323,120630.0,120620.0,1.19718409]
[1760036070189,0.60572323,120630.0,120620.0,0.44562409]
[1760036070491,0.60572323,120630.0,120620.0,0.40497409]
[1760036070790,0.60572323,120630.0,120620.0,1.15649409]
[1760036071594,0.96652323,120630.0,120620.0,0.40497409]
[1760036072686,1.36652323,120630.0,120610.0,0.75148]
[1760036072990,0.33272323,120620.0,120610.0,0.38886099]
[1760036073190,0.71984914,120620.0,120610.0,0.38886099]
[1760036074090,1.08064914,120620.0,120610.0,0.38886099]
[1760036074895,1.83416914,120620.0,120610.0,0.38886099]
[1760036075296,1.83516914,120620.0,120610.0,0.38886099]
[1760036077794,1.47436914,120620.0,120610.0,0.38886099]
[1760036078186,1.83516914,120620.0,120610.0,0.38886099]
[1760036078489,1.08364914,120620.0,120610.0,0.38886099]
[1760036078689,0.39012591,120620.0,120610.0,0.38886099]
[1760036078896,1.47436914,120620.0,120610.0,0.42557099]
[1760036079588,0.72284914,120620.0,120610.0,0.42557099]
[1760036079992,0.72284914,120620.0,120610.0,0.38886099]
[1760036082297,0.72284914,120620.0,120600.0,1.15396492]
[1760036082499,0.39012591,120620.0,120610.0,0.38886099]
[1760036082798,0.39012591,120620.0,120600.0,0.46668492]
[1760036082998,0.39012591,120620.0,120610.0,1.60205099]
[1760036083393,0.38912591,120620.0,120610.0,1.60205099]
[1760036083590,0.39012591,120620.0,120610.0,1.60205099]
[1760036084200,0.38912591,120620.0,120610.0,1.60205099]
[1760036084399,0.39012591,120620.0,120610.0,1.60205099]
[1760036084600,0.72284914,120620.0,120610.0,1.60205099]
[1760036085290,0.39012591,120620.0,120610.0,1.60205099]
[1760036087102,0.39012591,120620.0,120610.0,0.85057099]
[1760036087298,0.39012591,120620.0,120610.0,1.60205099]
[1760036090502,0.39012591,120620.0,120610.0,1.93477422]
[1760036090698,0.39012591,120620.0,120610.0,1.60205099]
[1760036094494,0.39012591,120620.0,120610.0,2.33469422]